bitfinex-derivatives/quotes_BTCF0:USTF0_20251119
["timestamp","ask_amount","ask_price","bid_price","bid_amount"]
[1763517470782,0.26172251,92314.0,92313.0,0.04543]
[1763517480006,0.37011901,92314.0,92313.0,0.04543]
[1763517481000,0.26172251,92314.0,92313.0,0.04543]
[1763517481200,0.26172251,92314.0,92313.0,0.07437913]
[1763517483216,0.26172251,92314.0,92313.0,0.04543]
[1763517483413,0.26172251,92314.0,92313.0,0.02904084]
[1763517483616,0.26172251,92314.0,92310.0,0.00219803]
[1763517483617,0.1083977,92313.0,92310.0,0.00219803]
[1763517484011,0.1084059,92306.0,92305.0,0.38984084]
[1763517485011,0.1084059,92306.0,92305.0,0.41188084]
[1763517485215,0.1084059,92306.0,92305.0,0.43362084]
[1763517485612,0.1084059,92306.0,92305.0,0.3608]
[1763517486111,0.1084059,92306.0,92305.0,0.38284]
[1763517486308,0.1084059,92306.0,92305.0,0.41188084]
[1763517486518,0.1084059,92306.0,92305.0,0.43362084]
[1763517487921,0.26172251,92314.0,92311.0,0.04378]
[1763517487922,0.108399,92312.0,92311.0,0.04378]
[1763517488721,0.108399,92312.0,92310.0,0.00219803]
[1763517488722,0.00016251,92314.0,92313.0,0.04378]
[1763517489020,0.26168251,92314.0,92313.0,0.04378]
[1763517491624,0.00016251,92314.0,92313.0,0.04378]
[1763517491824,0.26164251,92314.0,92313.0,0.04378]
[1763517492727,0.1083977,92313.0,92312.0,0.02904084]
[1763517493022,0.1083977,92313.0,92311.0,0.02904084]
[1763517495226,0.1083977,92313.0,92312.0,0.02904084]
[1763517495428,0.1093977,92313.0,92312.0,0.02904084]
[1763517495927,0.1103977,92313.0,92312.0,0.02904084]
[1763517496321,0.1093977,92313.0,92311.0,0.02904084]
[1763517496530,0.1093977,92313.0,92312.0,0.03539]
[1763517496732,0.1103977,92313.0,92312.0,0.03539]
[1763517497120,0.1103977,92313.0,92312.0,0.05713]
[1763517497315,0.002,92313.0,92312.0,0.05713]
[1763517497519,0.26344,92313.0,92312.0,0.05713]
[1763517498232,0.26244,92313.0,92312.0,0.05713]
[1763517498631,0.26344,92313.0,92312.0,0.05713]
[1763517499028,0.26244,92313.0,92312.0,0.05713]
[1763517499224,0.26344,92313.0,92312.0,0.05713]
[1763517499931,0.26344,92313.0,92312.0,0.08617084]
[1763517501231,0.23640473,92313.0,92312.0,0.08617084]
[1763517501633,0.23540473,92313.0,92312.0,0.08617084]
[1763517501933,0.23640473,92313.0,92312.0,0.08617084]
[1763517502229,0.23640473,92313.0,92312.0,0.05713]
[1763517502428,0.26344,92313.0,92312.0,0.05713]
[1763517502820,0.26244,92313.0,92312.0,0.05713]
[1763517503032,0.26344,92313.0,92312.0,0.05713]
[1763517503824,0.001,92313.0,92312.0,0.05713]
[1763517504025,0.26144,92318.0,92317.0,0.150843]
[1763517504536,0.26144,92318.0,92317.0,0.18968526]
[1763517504923,0.26144,92318.0,92317.0,0.150843]
[1763517505127,0.26444,92318.0,92317.0,0.150843]
[1763517505527,0.26244,92318.0,92317.0,0.150843]
[1763517505735,0.26344,92318.0,92317.0,0.150843]
[1763517505935,0.26244,92318.0,92317.0,0.150843]
[1763517507436,0.26144,92318.0,92317.0,0.150843]
[1763517507834,0.26144,92318.0,92317.0,0.1799584]
[1763517508230,0.26144,92318.0,92317.0,0.150843]
[1763517509138,0.23540828,92318.0,92317.0,0.150843]
[1763517510035,0.23540828,92318.0,92317.0,0.1799584]
[1763517510338,0.23540828,92318.0,92317.0,0.150843]
[1763517511125,0.3608,92325.0,92317.0,0.150843]
[1763517511338,0.3608,92325.0,92324.0,0.1523748]
[1763517511529,0.36998371,92327.0,92326.0,0.04399]
[1763517511729,0.37160371,92327.0,92326.0,0.04399]
[1763517512739,0.36998371,92327.0,92326.0,0.04399]
[1763517513043,0.00016251,92327.0,92326.0,0.04399]
[1763517513240,0.00016251,92327.0,92323.0,0.01271]
[1763517513241,0.00324,92324.0,92323.0,0.01271]
[1763517513434,0.00324,92324.0,92316.0,0.0418254]
[1763517513435,0.00324,92321.0,92320.0,0.00219803]
[1763517514142,0.00324,92321.0,92320.0,0.02471803]
[1763517514538,0.00424,92321.0,92320.0,0.02471803]
[1763517515036,0.00324,92321.0,92320.0,0.02471803]
[1763517515343,0.00424,92321.0,92320.0,0.02471803]
[1763517515543,0.00424,92321.0,92320.0,0.04618803]
[1763517517846,0.26306,92324.0,92323.0,0.0567]
[1763517518240,0.26468,92324.0,92323.0,0.0567]
[1763517518645,0.00324,92324.0,92323.0,0.0567]
[1763517518856,0.00016251,92327.0,92326.0,0.04399]
[1763517519948,0.00340251,92327.0,92326.0,0.04399]
[1763517520340,0.11178371,92327.0,92326.0,0.04399]
[1763517520944,0.00340251,92327.0,92326.0,0.04399]
[1763517521145,0.00340251,92327.0,92326.0,0.1523724]
[1763517521339,0.00540251,92327.0,92326.0,0.1523724]
[1763517521944,0.00440251,92327.0,92326.0,0.1523724]
[1763517522149,0.00378251,92327.0,92326.0,0.1523724]
[1763517523042,0.00216251,92327.0,92326.0,0.1523724]
[1763517523445,0.00116251,92327.0,92326.0,0.1523724]
[1763517523751,0.00116251,92327.0,92326.0,0.1814878]
[1763517523944,0.11054371,92327.0,92326.0,0.0731054]
[1763517524139,0.11378371,92327.0,92326.0,0.0731054]
[1763517524552,0.11278371,92327.0,92326.0,0.04399]
[1763517524752,0.11378371,92327.0,92326.0,0.0731054]
[1763517525146,0.11378371,92327.0,92326.0,0.04399]
[1763517525347,0.11278371,92327.0,92326.0,0.04399]
[1763517525646,0.11378371,92327.0,92326.0,0.04399]
[1763517525947,0.11378371,92327.0,92326.0,0.02252]
[1763517526359,0.11278371,92327.0,92326.0,0.02252]
[1763517527055,0.11378371,92327.0,92326.0,0.02252]
[1763517527638,0.11278371,92327.0,92326.0,0.02252]
[1763517527845,0.11378371,92327.0,92326.0,0.04399]
[1763517528449,0.11278371,92327.0,92326.0,0.04399]
[1763517528647,0.11378371,92327.0,92326.0,0.04399]
[1763517530650,0.00524,92327.0,92326.0,0.04399]
[1763517530849,0.1136212,92327.0,92326.0,0.04399]
[1763517531642,0.1126212,92327.0,92326.0,0.04399]
[1763517532948,0.1116212,92327.0,92326.0,0.04399]
[1763517533147,0.1126212,92327.0,92326.0,0.04399]
[1763517533645,0.1136212,92327.0,92326.0,0.04399]
[1763517534354,0.1126212,92327.0,92326.0,0.04399]
[1763517535245,0.1136212,92327.0,92326.0,0.04399]
[1763517536363,0.002,92327.0,92326.0,0.04399]
[1763517536748,0.002,92327.0,92326.0,0.0731054]
[1763517537051,0.002,92327.0,92326.0,0.04399]
[1763517537456,0.001,92327.0,92326.0,0.04399]
[1763517537756,0.00362,92327.0,92326.0,0.04399]
[1763517537956,0.002,92327.0,92326.0,0.04399]
[1763517538154,0.001,92327.0,92326.0,0.04399]
[1763517538348,0.002,92327.0,92326.0,0.04399]
[1763517539549,0.001,92327.0,92326.0,0.04399]
[1763517539761,0.3713986,92330.0,92329.0,0.04337]
[1763517540160,0.3697786,92330.0,92329.0,0.04337]
[1763517540954,0.3707786,92330.0,92329.0,0.04337]
[1763517541564,0.3750186,92330.0,92329.0,0.04337]
[1763517541762,0.3750186,92330.0,92328.0,0.02915791]
[1763517541955,0.1116213,92327.0,92326.0,0.02915791]
[1763517542149,0.1116213,92327.0,92326.0,0.02169]
[1763517542356,0.1116213,92327.0,92326.0,0.05084791]
[1763517542663,0.08558979,92327.0,92326.0,0.05084791]
[1763517543453,0.08658979,92327.0,92326.0,0.05084791]
[1763517543758,0.00324,92322.0,92321.0,0.02915791]
[1763517543962,0.26464,92322.0,92321.0,0.02915791]
[1763517544661,0.26464,92322.0,92321.0,0.05084791]
[1763517545664,0.26464,92322.0,92321.0,0.07252791]
[1763517545862,0.26564,92322.0,92321.0,0.07252791]
[1763517546064,0.26664,92322.0,92321.0,0.07252791]
[1763517547763,0.26664,92322.0,92321.0,0.04337]
[1763517550071,0.002,92322.0,92321.0,0.04337]
[1763517550267,0.2634,92322.0,92321.0,0.04337]
[1763517550460,0.2634,92322.0,92321.0,0.08225585]
[1763517550660,0.23736834,92322.0,92321.0,0.08225585]
[1763517550861,0.23736834,92322.0,92321.0,0.04337]
[1763517553474,0.08852449,92332.0,92323.0,0.01348]
[1763517553675,0.36242,92334.0,92333.0,0.04337]
[1763517553969,0.41918854,92344.0,92333.0,0.04337]
[1763517553970,0.03878076,92349.0,92348.0,0.1517266]
[1763517554171,0.1614,92356.0,92355.0,0.04337]
[1763517554971,0.24953765,92356.0,92355.0,0.04337]
[1763517555173,0.08813765,92356.0,92355.0,0.04337]
[1763517555475,0.26334194,92365.0,92364.0,0.04337]
[1763517555675,0.26156194,92365.0,92364.0,0.04337]
[1763517555874,0.08674016,92365.0,92364.0,0.04337]
[1763517556073,0.26405,92381.0,92380.0,0.04337]
[1763517556274,0.52545,92381.0,92380.0,0.04556803]
[1763517556474,0.52751,92381.0,92380.0,0.04556803]
[1763517556673,0.52957,92381.0,92380.0,0.04556803]
[1763517557376,0.6153796,92381.0,92380.0,0.04556803]
[1763517558479,0.6153796,92381.0,92380.0,0.00219803]
[1763517558480,0.6193796,92381.0,92380.0,0.00219803]
[1763517558977,0.00412,92372.0,92371.0,0.04353242]
[1763517559475,0.1124484,92372.0,92371.0,0.04353242]
[1763517560077,0.1144484,92372.0,92371.0,0.02185242]
[1763517560983,0.1154484,92372.0,92371.0,0.02185242]
[1763517561175,0.00712,92372.0,92371.0,0.04353242]
[1763517561678,0.00412,92372.0,92371.0,0.04353242]
[1763517561880,0.00612,92372.0,92371.0,0.04353242]
[1763517562277,0.00512,92372.0,92371.0,0.04353242]
[1763517562478,0.00612,92372.0,92371.0,0.04353242]
[1763517562678,0.26744,92372.0,92371.0,0.04353242]
[1763517563380,0.26332,92372.0,92371.0,0.40433242]
[1763517563586,0.002,92372.0,92371.0,0.40433242]
[1763517564887,0.001,92372.0,92371.0,0.40433242]
[1763517565085,0.002,92372.0,92371.0,0.40433242]
[1763517566081,0.3471296,92381.0,92380.0,0.04399]
[1763517566284,0.07355328,92381.0,92380.0,0.40698803]
[1763517566586,0.36492,92401.0,92400.0,0.05772]
[1763517566778,0.2654,92401.0,92400.0,0.05991803]
[1763517567783,0.35101772,92401.0,92400.0,0.05991803]
[1763517568183,0.35301772,92401.0,92400.0,0.05991803]
[1763517568689,0.35601772,92401.0,92400.0,0.05991803]
[1763517568884,0.71681772,92401.0,92400.0,0.00219803]
[1763517570486,0.71681772,92401.0,92400.0,0.05973803]
[1763517572504,0.71681772,92401.0,92400.0,0.03710803]
[1763517574198,0.35601772,92401.0,92400.0,0.05973803]
[1763517574400,0.35189772,92401.0,92400.0,0.05973803]
[1763517575399,0.35395772,92401.0,92400.0,0.05973803]
[1763517575799,0.35189772,92401.0,92400.0,0.05973803]
[1763517576199,0.36492,92429.0,92428.0,0.05754]
[1763517576403,0.36492,92429.0,92428.0,0.1658029]
[1763517576709,0.0890364,92429.0,92428.0,0.5266029]
[1763517577007,0.3608,92450.0,92428.0,0.5266029]
[1763517577008,0.3608,92450.0,92430.0,0.00219803]
[1763517577203,0.36492,92462.0,92461.0,0.02168]
[1763517577404,0.36492,92462.0,92461.0,0.04431]
[1763517577904,0.36492,92462.0,92461.0,0.02168]
[1763517578106,0.45113044,92462.0,92461.0,0.04431]
[1763517578300,0.04272,92457.0,92456.0,0.05754]
[1763517578699,0.00219803,92460.0,92459.0,0.04431]
[1763517578899,0.04491803,92460.0,92459.0,0.04431]
[1763517579998,0.04591803,92460.0,92459.0,0.04431]
[1763517580806,0.04691803,92460.0,92459.0,0.04431]
[1763517581202,0.00419803,92460.0,92459.0,0.04431]
[1763517581407,0.002,92460.0,92459.0,0.04431]
[1763517582497,0.1082099,92475.0,92472.0,0.04431]
[1763517582498,0.40352,92473.0,92472.0,0.04431]
[1763517582705,0.04272,92471.0,92470.0,0.00073267]
[1763517583210,0.1509546,92453.0,92450.0,0.2612]
[1763517583413,0.04272,92453.0,92450.0,0.26193267]
[1763517583709,0.04272,92453.0,92452.0,0.02184223]
[1763517584304,0.04272,92453.0,92452.0,0.04447223]
[1763517584810,0.3608,92465.0,92464.0,0.04431]
[1763517584811,0.30352,92465.0,92464.0,0.04431]
[1763517585003,0.32461,92465.0,92464.0,0.04431]
[1763517585199,0.04372,92471.0,92470.0,0.04431]
[1763517585402,0.1519336,92471.0,92470.0,0.04504267]
[1763517585604,0.04272,92471.0,92470.0,0.04504267]
[1763517586206,0.08614827,92473.0,92470.0,0.04504267]
[1763517586411,0.04272,92473.0,92472.0,0.04431]
[1763517586914,0.66468,92483.0,92482.0,0.04431]
[1763517587401,0.75165831,92483.0,92482.0,0.04431]
[1763517587603,0.49049831,92483.0,92482.0,0.04431]
[1763517588202,0.49249831,92483.0,92482.0,0.04431]
[1763517588608,0.49049831,92483.0,92482.0,0.04431]
[1763517588808,0.003,92483.0,92482.0,0.04431]
[1763517589313,0.40352,92518.0,92517.0,0.02168]
[1763517589504,0.40352,92518.0,92517.0,0.04431]
[1763517589505,0.10743853,92518.0,92517.0,0.04431]
[1763517589706,0.12906853,92518.0,92517.0,0.04431]
[1763517590103,0.08634853,92518.0,92510.0,0.3608]
[1763517590307,0.04272,92511.0,92510.0,0.36153267]
[1763517593416,0.04272,92511.0,92510.0,0.38321267]
[1763517593614,0.04372,92511.0,92510.0,0.38321267]
[1763517593816,0.04472,92511.0,92510.0,0.38321267]
[1763517594216,0.04372,92511.0,92510.0,0.40584267]
[1763517595211,0.04472,92511.0,92510.0,0.40584267]
[1763517595420,0.04372,92511.0,92510.0,0.40584267]
[1763517597015,0.04472,92511.0,92510.0,0.40584267]
[1763517597412,0.04372,92511.0,92510.0,0.40584267]
[1763517597612,0.04472,92511.0,92510.0,0.40584267]
[1763517598119,0.04372,92511.0,92510.0,0.40584267]
[1763517598312,0.05756,92511.0,92510.0,0.38321267]
[1763517598508,0.04372,92511.0,92510.0,0.40579267]
[1763517599214,0.001,92511.0,92510.0,0.40579267]
[1763517599415,0.08446933,92518.0,92517.0,0.04404]
[1763517599619,0.04495,92518.0,92517.0,0.04404]
[1763517600020,0.04495,92518.0,92517.0,0.02146]
[1763517600408,0.0721,92519.0,92518.0,0.04404]
[1763517601616,0.001,92519.0,92518.0,0.40484]
[1763517602318,0.002,92519.0,92518.0,0.40484]
[1763517602513,0.0002702,92526.0,92525.0,0.1521907]
[1763517603112,0.0002702,92526.0,92525.0,0.04404]
[1763517603113,0.0452202,92526.0,92525.0,0.04404]
[1763517603326,0.0002702,92526.0,92525.0,0.1521907]
[1763517603509,0.0002702,92526.0,92525.0,0.04404]
[1763517603712,0.04495,92524.0,92523.0,0.26104]
[1763517603912,0.04495,92524.0,92523.0,0.2825]
[1763517604114,0.04495,92524.0,92523.0,0.04404]
[1763517604807,0.0012702,92526.0,92525.0,0.02146]
[1763517605012,0.0022702,92526.0,92525.0,0.04404]
[1763517605917,0.04495,92543.0,92542.0,0.04404]
[1763517606718,0.1299088,92543.0,92542.0,0.04404]
[1763517607112,0.1530808,92542.0,92541.0,0.3608]
[1763517607323,0.04495,92542.0,92541.0,0.40484]
[1763517607541,0.002,92543.0,92541.0,0.40484]
[1763517607542,0.002,92543.0,92542.0,0.04404]
[1763517608323,0.02285,92552.0,92551.0,0.1521601]
[1763517608515,0.02285,92552.0,92551.0,0.40484]
[1763517608923,0.13255514,92552.0,92551.0,0.3608]
[1763517609222,0.1530703,92551.0,92550.0,0.00073267]
[1763517609424,0.08649933,92552.0,92551.0,0.04404]
[1763517609719,0.1530703,92551.0,92550.0,0.36153267]
[1763517609916,0.1530808,92542.0,92541.0,0.3608]
[1763517610119,0.1530808,92542.0,92541.0,0.40484]
[1763517611120,0.38365,92548.0,92547.0,0.03527]
[1763517611327,0.1530738,92548.0,92547.0,0.05673]
[1763517611623,0.1530738,92548.0,92541.0,0.3608]
[1763517611624,0.1530808,92542.0,92541.0,0.40484]
[1763517611826,0.1530808,92542.0,92541.0,0.3608]
[1763517612031,0.1530808,92542.0,92540.0,0.00073267]
[1763517612032,0.04495,92541.0,92540.0,0.00073267]
[1763517612218,0.1081308,92542.0,92521.0,0.3608]
[1763517612219,0.1530902,92534.0,92521.0,0.3608]
[1763517612419,0.04495,92511.0,92510.0,0.3608]
[1763517612617,0.05067,92511.0,92510.0,0.36153267]
[1763517612820,0.04495,92511.0,92510.0,0.38299267]
[1763517613118,0.04495,92511.0,92510.0,0.36153267]
[1763517613313,0.04495,92511.0,92510.0,0.38299267]
[1763517613518,0.04495,92511.0,92510.0,0.40557267]
[1763517613726,0.00016117,92520.0,92519.0,0.04404]
[1763517613929,0.0473092,92520.0,92519.0,0.04404]
[1763517614816,0.0033592,92520.0,92519.0,0.04404]
[1763517615021,0.0033592,92520.0,92519.0,0.40484]
[1763517615418,0.00116117,92520.0,92519.0,0.40484]
[1763517615619,0.00216117,92520.0,92519.0,0.40484]
[1763517616016,0.0493092,92520.0,92519.0,0.40484]
[1763517616231,0.0631492,92520.0,92519.0,0.3608]
[1763517617025,0.0043592,92520.0,92519.0,0.40484]
[1763517617228,0.00216117,92520.0,92519.0,0.40484]
[1763517617530,0.40575,92534.0,92533.0,0.04404]
[1763517617829,0.04495,92534.0,92533.0,0.04404]
[1763517618131,0.1530828,92541.0,92540.0,0.04404]
[1763517618325,0.1530828,92541.0,92540.0,0.04477267]
[1763517618832,0.24083671,92541.0,92540.0,0.00073267]
[1763517619018,0.1669325,92532.0,92531.0,0.00016213]
[1763517619425,0.1530925,92532.0,92531.0,0.02162213]
[1763517619625,0.1530925,92532.0,92531.0,0.04420213]
[1763517619933,0.1669325,92532.0,92531.0,0.00016213]
[1763517620428,0.1679325,92532.0,92531.0,0.00016213]
[1763517621222,0.4289725,92532.0,92531.0,0.00016213]
[1763517621424,0.4299725,92532.0,92531.0,0.00016213]
[1763517621628,0.30799,92532.0,92531.0,0.04420213]
[1763517622622,0.30799,92532.0,92531.0,0.02162213]
[1763517622916,0.32138,92532.0,92531.0,0.00016213]
[1763517623227,0.30799,92532.0,92531.0,0.00016213]
[1763517627225,0.30799,92532.0,92510.0,0.02893235]
[1763517627226,0.04432,92511.0,92510.0,0.02893235]
[1763517627432,0.1524871,92511.0,92510.0,0.00073267]
[1763517627929,0.04423,92500.0,92499.0,0.07408235]
[1763517628229,0.04642803,92500.0,92499.0,0.07408235]
[1763517628432,0.04642803,92500.0,92499.0,0.08696235]
[1763517628630,0.00016213,92509.0,92499.0,0.08696235]
[1763517628631,0.00016213,92509.0,92508.0,0.04515]
[1763517628933,0.00016213,92509.0,92508.0,0.40595]
[1763517629938,0.00016213,92509.0,92508.0,0.40795]
[1763517630326,0.04439213,92509.0,92508.0,0.40795]
[1763517630626,0.00016213,92509.0,92508.0,0.40595]
[1763517630928,0.02124213,92509.0,92508.0,0.40595]
[1763517631631,0.00016213,92509.0,92508.0,0.40595]
[1763517634125,0.04439213,92509.0,92508.0,0.3836]
[1763517634532,0.00016213,92509.0,92508.0,0.40595]
[1763517635334,0.00016213,92509.0,92499.0,0.04173193]
[1763517635335,0.02108,92500.0,92499.0,0.04173193]
[1763517635535,0.15460793,92500.0,92499.0,0.04515]
[1763517636630,0.15460793,92500.0,92499.0,0.04615]
[1763517636829,0.04642803,92500.0,92499.0,0.04615]
[1763517637931,0.04642803,92500.0,92499.0,0.0238]
[1763517638338,0.04642803,92500.0,92499.0,0.04615]
[1763517638733,0.00219803,92500.0,92499.0,0.05903]
[1763517639137,0.00219803,92500.0,92499.0,0.05803]
[1763517639335,0.04642803,92500.0,92499.0,0.04515]
[1763517640629,0.00219803,92500.0,92499.0,0.04515]
[1763517642140,0.04642803,92500.0,92499.0,0.04515]
[1763517642641,0.04742803,92500.0,92499.0,0.04515]
[1763517644045,0.1524205,92491.0,92490.0,0.00016213]
[1763517644342,0.1524205,92491.0,92490.0,0.0008948]
[1763517644343,0.4134205,92491.0,92490.0,0.0008948]
[1763517646240,0.261,92491.0,92490.0,0.0589248]
[1763517646437,0.40503,92500.0,92499.0,0.04515]
[1763517646645,0.66822803,92500.0,92499.0,0.04515]
[1763517647135,0.66822803,92500.0,92493.0,0.3608]
[1763517647136,0.04423,92494.0,92493.0,0.3836]
[1763517647527,0.02108,92495.0,92490.0,0.0137748]
[1763517647732,0.1524158,92495.0,92494.0,0.04515]
[1763517648446,0.40603,92500.0,92499.0,0.04515]
[1763517648635,0.38507803,92500.0,92499.0,0.04515]
[1763517649039,0.40822803,92500.0,92499.0,0.04515]
[1763517649234,0.51540793,92500.0,92499.0,0.04515]
[1763517649936,0.51540793,92500.0,92490.0,0.05819213]
[1763517649937,0.1524205,92491.0,92490.0,0.05819213]
[1763517650147,0.1524205,92491.0,92490.0,0.0460448]
[1763517650346,0.1524205,92491.0,92490.0,0.0589248]
[1763517650545,0.5275999,92500.0,92499.0,0.0228]
[1763517650742,0.52979793,92500.0,92499.0,0.0228]
[1763517651046,0.1292705,92491.0,92490.0,0.05819213]
[1763517651246,0.1292705,92491.0,92490.0,0.0589248]
[1763517651439,0.04423,92491.0,92490.0,0.0589248]
[1763517652342,0.1524205,92491.0,92490.0,0.0589248]
[1763517653035,0.1524205,92491.0,92490.0,0.0008948]
[1763517653333,0.1524205,92491.0,92490.0,0.0460448]
[1763517654637,0.04423,92491.0,92490.0,0.0460448]
[1763517654841,0.04423,92491.0,92490.0,0.0589248]
[1763517655048,0.04423,92491.0,92490.0,0.0460448]
[1763517661850,0.26096,92493.0,92492.0,0.0436]
[1763517662244,0.3067,92493.0,92492.0,0.0436]
[1763517662646,0.28397,92493.0,92492.0,0.0436]
[1763517662852,0.26096,92493.0,92492.0,0.0436]
[1763517663347,0.4689801,92500.0,92499.0,0.0436]
[1763517663544,0.51691813,92500.0,92499.0,0.0436]
[1763517663943,0.1677281,92493.0,92492.0,0.02885193]
[1763517664148,0.1677281,92493.0,92490.0,0.0008948]
[1763517664149,0.1539305,92491.0,92490.0,0.0008948]
[1763517664346,0.4148905,92491.0,92490.0,0.00016213]
[1763517664552,0.4148905,92491.0,92490.0,2.13e-06]
[1763517664854,0.04574,92473.0,92472.0,0.02888524]
[1763517665052,0.1539527,92472.0,92471.0,0.02888524]
[1763517665240,0.04574,92471.0,92470.0,0.00073267]
[1763517665439,0.04574,92471.0,92470.0,0.02271267]
[1763517665651,0.04574,92471.0,92470.0,0.05160011]
[1763517666353,0.04574,92471.0,92470.0,0.07422011]
[1763517667146,0.04574,92471.0,92470.0,0.04533267]
[1763517667656,0.04574,92471.0,92470.0,0.04633267]
[1763517668151,0.04574,92471.0,92470.0,0.07521074]
[1763517668847,0.08780303,92471.0,92470.0,0.08836074]
[1763517669045,0.26104,92473.0,92472.0,0.0436]
[1763517669950,0.30678,92473.0,92472.0,0.0436]
[1763517671061,0.30678,92473.0,92472.0,0.0446]
[1763517671251,0.00016213,92480.0,92472.0,0.0446]
[1763517671252,0.00016213,92480.0,92472.0,0.001]
[1763517671558,0.00016213,92480.0,92478.0,0.5126052]
[1763517671559,0.261,92479.0,92478.0,0.5126052]
[1763517672148,0.00236016,92480.0,92479.0,0.0436]
[1763517672149,0.00016213,92480.0,92479.0,0.0436]
[1763517672353,0.1539199,92501.0,92500.0,0.0436]
[1763517672550,0.4149599,92501.0,92500.0,0.04433267]
[1763517673146,0.4149599,92501.0,92500.0,0.00073267]
[1763517673548,0.4159599,92501.0,92500.0,0.00073267]
[1763517675160,0.1539293,92492.0,92491.0,0.02902671]
[1763517675359,0.1539293,92492.0,92491.0,0.00016213]
[1763517675562,0.4149293,92492.0,92491.0,0.00016213]
[1763517678363,0.30674,92492.0,92491.0,0.04476213]
[1763517678864,0.30674,92492.0,92491.0,0.04376213]
[1763517681968,0.261,92492.0,92491.0,0.04376213]
[1763517682463,0.30479,92492.0,92491.0,0.04376213]
[1763517682669,0.1519728,92498.0,92497.0,0.0452]
[1763517683563,0.00219803,92500.0,92499.0,0.0452]
[1763517683769,0.26096,92503.0,92502.0,0.1672776]
[1763517684369,0.08635294,92504.0,92502.0,0.0139]
[1763517684568,0.00236016,92510.0,92509.0,0.1533694]
[1763517684569,0.02149,92510.0,92509.0,0.1533694]
[1763517684768,0.0025131,92520.0,92512.0,0.1081652]
[1763517684769,0.02149,92514.0,92512.0,0.1081652]
[1763517684965,0.12953114,92520.0,92519.0,0.1533577]
[1763517685166,0.02149,92520.0,92519.0,0.1533577]
[1763517685366,0.3050202,92526.0,92525.0,0.0452]
[1763517685562,0.2612302,92526.0,92525.0,0.0452]
[1763517686165,0.0002702,92526.0,92525.0,0.0452]
[1763517686767,0.0012702,92526.0,92525.0,0.0452]
[1763517687370,0.0450702,92526.0,92525.0,0.0452]
[1763517690466,0.0450702,92526.0,92525.0,0.02226]
[1763517690666,0.0450702,92526.0,92520.0,0.00219803]
[1763517690667,0.1536054,92521.0,92520.0,0.00219803]
[1763517691269,0.04545,92521.0,92520.0,0.02467803]
[1763517691470,0.04545,92521.0,92520.0,0.05881803]
[1763517691867,0.04645,92521.0,92520.0,0.05881803]
[1763517692269,0.001,92521.0,92520.0,0.05881803]
[1763517694470,0.04645,92521.0,92520.0,0.05881803]
[1763517694666,0.1546054,92521.0,92520.0,0.05881803]
[1763517694970,0.1546054,92521.0,92520.0,0.00219803]
[1763517696866,0.1546054,92521.0,92502.0,0.4828773]
[1763517696867,0.1536101,92517.0,92502.0,0.3747]
[1763517697172,0.04545,92487.0,92486.0,0.40441]
[1763517697470,0.1536312,92499.0,92498.0,0.02248]
[1763517697668,0.1536312,92499.0,92498.0,0.04361]
[1763517698468,0.30637,92502.0,92501.0,0.04361]
[1763517698673,0.04561213,92508.0,92507.0,0.04361]
[1763517698873,0.30653213,92508.0,92507.0,0.04361]
[1763517699377,0.28422213,92508.0,92507.0,0.04361]
[1763517700374,0.00016213,92508.0,92507.0,0.04361]
[1763517700972,0.00116213,92508.0,92507.0,0.04361]
[1763517701369,0.02430213,92508.0,92507.0,0.04361]
[1763517701679,0.04661213,92508.0,92507.0,0.04361]
[1763517701879,0.04561213,92508.0,92507.0,0.04361]
[1763517704577,0.15378273,92508.0,92507.0,0.04361]
[1763517707385,0.04561213,92508.0,92507.0,0.04361]
[1763517708677,0.04545,92506.0,92502.0,0.01301]
[1763517708877,0.02330213,92508.0,92507.0,0.04361]
[1763517710284,0.00016213,92508.0,92507.0,0.04361]
[1763517710480,0.02330213,92508.0,92507.0,0.04361]
[1763517710680,0.04561213,92508.0,92507.0,0.04361]
[1763517712275,0.04561213,92508.0,92497.0,0.3608]
[1763517712276,0.04545,92502.0,92497.0,0.3608]
[1763517712477,0.04545,92501.0,92500.0,0.04580803]
[1763517713085,0.1536288,92501.0,92500.0,0.00219803]
[1763517713688,0.1536288,92501.0,92500.0,0.02467803]
[1763517714386,0.1536288,92501.0,92500.0,0.04580803]
[1763517714789,0.04545,92501.0,92500.0,0.04580803]
[1763517715087,0.1536288,92501.0,92500.0,0.04580803]
[1763517715282,0.4145488,92501.0,92500.0,0.04580803]
[1763517715489,0.4145488,92501.0,92500.0,0.00219803]
[1763517716287,0.30637,92501.0,92500.0,0.04580803]
[1763517716686,0.3145488,92501.0,92500.0,0.04580803]
[1763517716884,0.3223888,92501.0,92500.0,0.04580803]
[1763517717084,0.00800213,92508.0,92507.0,0.04361]
[1763517717284,0.26892213,92508.0,92507.0,0.04361]
[1763517718189,0.00800213,92508.0,92507.0,0.04361]
[1763517718380,0.34892213,92510.0,92509.0,0.04326]
[1763517718576,0.60984213,92510.0,92509.0,0.04326]
[1763517719575,0.34892213,92510.0,92509.0,0.04326]
[1763517719776,0.60984213,92510.0,92509.0,0.04326]
[1763517719986,0.61084213,92510.0,92509.0,0.04326]
[1763517720192,0.1081741,92505.0,92504.0,0.01301]
[1763517720490,0.1081784,92501.0,92500.0,0.00219803]
[1763517720691,0.3690984,92501.0,92500.0,0.04545803]
[1763517721088,0.3680984,92501.0,92500.0,0.04545803]
[1763517722593,0.3680984,92501.0,92500.0,0.04645803]
[1763517723194,0.3680984,92501.0,92500.0,0.04545803]
[1763517723487,0.26092,92501.0,92500.0,0.04545803]
[1763517725290,0.0389048,92509.0,92508.0,0.04326]
[1763517725688,0.2998248,92509.0,92508.0,0.04326]
[1763517725893,0.26092,92509.0,92508.0,0.04326]
[1763517726087,0.1081656,92512.0,92511.0,0.04326]
[1763517726293,0.3690856,92512.0,92511.0,0.04326]
[1763517726887,0.3690856,92512.0,92510.0,0.00219803]
[1763517726888,0.3690856,92512.0,92510.0,0.04545803]
[1763517727591,0.3690856,92512.0,92500.0,0.00219803]
[1763517727592,0.1081761,92503.0,92500.0,0.00219803]
[1763517727791,0.1081785,92501.0,92500.0,0.00219803]
[1763517728291,0.1081866,92494.0,92493.0,0.02894652]
[1763517728485,0.1081901,92491.0,92490.0,0.00219803]
[1763517728685,0.3691101,92491.0,92489.0,0.00016213]
[1763517729394,0.41880124,92491.0,92489.0,0.00016213]